fUSD/lending_fUSD_20260505
["ID","MTS","AMOUNT","RATE_DAILY","PERIOD"]
[421608048,1777950632000,-1663.03959526,0.00019589,2]
[421608047,1777950632000,-161.74,0.00019499,2]
[421608056,1777950632000,-500.0,0.00020239,2]
[421608050,1777950632000,-500.0,0.00020239,2]
[421608052,1777950632000,-500.0,0.00020239,2]
[421608051,1777950632000,-150.0,0.00020239,2]
[421608054,1777950632000,-500.0,0.00020239,2]
[421608053,1777950632000,-150.0,0.00020239,2]
[421608055,1777950632000,-163.83485364,0.00020239,2]
[421608061,1777950632000,-500.0,0.00020239,2]
[421608057,1777950632000,-500.0,0.00020239,2]
[421608040,1777950632000,-161.75,0.00017249,2]
[421608042,1777950632000,-6728.48,0.00017397,2]
[421608037,1777950632000,-511.96341372,0.000169,2]
[421608023,1777950632000,-11235.42025787,0.00015,2]
[421608034,1777950632000,-151.0,0.00016849,2]
[421608017,1777950632000,-282.46269171,0.00014699,2]
[421608019,1777950632000,-31835.5227,0.000149,2]
[421608020,1777950632000,-7189.5051036,0.00014976,2]
[421608022,1777950632000,-485.23,0.00014999,2]
[421608021,1777950632000,-228.0,0.00014999,2]
[421608018,1777950632000,-300.0,0.00014899,2]
[421608026,1777950632000,-5066.21029526,0.00015068,2]
[421608024,1777950632000,-173.69710781,0.00015,2]
[421608039,1777950632000,-510.3914157,0.000169,2]
[421608025,1777950632000,-300.0,0.00015068,2]
[421608030,1777950632000,-151.0,0.00016849,2]
[421608028,1777950632000,-184.02,0.000166,2]
[421608033,1777950632000,-151.0,0.00016849,2]
[421608029,1777950632000,-502.68052152,0.00016849,2]
[421608031,1777950632000,-151.0,0.00016849,2]
[421608032,1777950632000,-151.0,0.00016849,2]
[421608035,1777950632000,-266.37744325,0.00016849,2]
[421608036,1777950632000,-1386.78395259,0.00016849,2]
[421608027,1777950632000,-292.0,0.00016308,2]
[421608058,1777950632000,-500.0,0.00020239,2]
[421608089,1777950632000,-500.0,0.00020239,2]
[421608059,1777950632000,-500.0,0.00020239,2]
[421608079,1777950632000,-500.0,0.00020239,2]
[421608085,1777950632000,-500.0,0.00020239,2]
[421608083,1777950632000,-500.0,0.00020239,2]
[421608091,1777950632000,-500.0,0.00020273,2]
[421608090,1777950632000,-577.47884609,0.00020239,2]
[421608088,1777950632000,-500.0,0.00020239,2]
[421608092,1777950632000,-500.0,0.00020273,2]
[421608096,1777950632000,-1002.87352275,0.00020821,2]
[421608086,1777950632000,-500.0,0.00020239,2]
[421608094,1777950632000,-500.88561119,0.00020573,2]
[421608093,1777950632000,-503.34044827,0.00020513,2]
[421608100,1777950632000,-251.93,0.00021396,2]
[421608101,1777950632000,-7189.5051036,0.00021466,2]
[421608097,1777950632000,-1000.0,0.00020821,2]
[421608098,1777950632000,-1854.55133189,0.00021233,2]
[421608103,1777950632000,-1923.16973117,0.00021781,2]
[421608102,1777950632000,-631.3,0.00021725,2]
[421608060,1777950632000,-500.0,0.00020239,2]
[421608095,1777950632000,-1788.38122651,0.00020685,2]
[421608087,1777950632000,-500.0,0.00020239,2]
[421608099,1777950632000,-1500.0,0.00021368,2]
[421608082,1777950632000,-500.0,0.00020239,2]
[421608062,1777950632000,-500.0,0.00020239,2]
[421608084,1777950632000,-500.0,0.00020239,2]
[421608064,1777950632000,-513.82413912,0.00020239,2]
[421608065,1777950632000,-500.0,0.00020239,2]
[421608063,1777950632000,-500.0,0.00020239,2]
[421608067,1777950632000,-500.0,0.00020239,2]
[421608066,1777950632000,-500.0,0.00020239,2]
[421608069,1777950632000,-500.0,0.00020239,2]
[421608072,1777950632000,-500.0,0.00020239,2]
[421608068,1777950632000,-500.0,0.00020239,2]
[421608073,1777950632000,-500.0,0.00020239,2]
[421608071,1777950632000,-500.0,0.00020239,2]
[421608074,1777950632000,-500.0,0.00020239,2]
[421608075,1777950632000,-374.83062335,0.00020239,2]
[421608077,1777950632000,-517.20772398,0.00020239,2]
[421608078,1777950632000,-500.0,0.00020239,2]
[421608076,1777950632000,-500.0,0.00020239,2]
[421608070,1777950632000,-500.0,0.00020239,2]
[421608080,1777950632000,-500.0,0.00020239,2]
[421608081,1777950632000,-500.0,0.00020239,2]
[421608131,1777950633000,-822.57,0.00033052,2]
[421608140,1777950633000,-176.36900123,0.0003494,2]
[421608139,1777950633000,-185.191,0.00034809,40]
[421608137,1777950633000,-822.57,0.00034705,2]
[421608138,1777950633000,-1131.68,0.00034809,40]
[421608134,1777950633000,-7189.5051036,0.00034445,2]
[421608133,1777950633000,-822.57,0.00033879,2]
[421608135,1777950633000,-10302.0224976,0.000345,120]
[421608142,1777950633000,-300.97,0.00035,7]
[421608132,1777950633000,-1268.38,0.0003331,2]
[421608143,1777950633000,-741.0,0.00035,14]
[421608152,1777950633000,-150.0,0.00038195,7]
[421608141,1777950633000,-161.01393277,0.00035,30]
[421608145,1777950633000,-162.51838138,0.00035805,2]
[421608148,1777950633000,-234.96897259,0.00037572,99]
[421608147,1777950633000,-1268.38,0.00037011,2]
[421608146,1777950633000,-822.57,0.00036358,2]
[421608150,1777950633000,-283.635989,0.00037951,21]
[421608149,1777950633000,-179.43370169,0.000379,120]
[421608151,1777950633000,-150.0,0.00038195,30]
[421608153,1777950633000,-150.0,0.00038195,7]
[421608154,1777950633000,-150.6370443,0.00038195,7]
[421608128,1777950633000,-51623.92,0.00031865,2]
[421608144,1777950633000,-822.57,0.00035531,2]
[421608129,1777950633000,-2500.0,0.00032426,2]
[421608108,1777950633000,-168.42,0.00026475,2]
[421608136,1777950633000,-509.53430038,0.00034688,7]
[421608155,1777950633000,-150.0,0.00038195,7]
[421608104,1777950633000,-2000.0,0.00021916,2]
[421608105,1777950633000,-319.42,0.00021999,2]
[421608107,1777950633000,-510.58001212,0.00022464,2]
[421608111,1777950633000,-7189.5051036,0.00027955,2]
[421608109,1777950633000,-4977.58,0.00027094,2]
[421608110,1777950633000,-173.46,0.00027297,30]
[421608106,1777950633000,-1994.32701123,0.00022329,2]
[421608112,1777950633000,-154.71,0.00028887,2]
[421608116,1777950633000,-150.0,0.00029534,2]
[421608114,1777950633000,-4380.025,0.00029176,2]
[421608115,1777950633000,-367.721,0.00029176,2]
[421608117,1777950633000,-1268.38,0.00029609,2]
[421608118,1777950633000,-199.4975,0.0002999,2]
[421608120,1777950633000,-4494.34,0.00030542,2]
[421608119,1777950633000,-200.0,0.00030137,2]
[421608122,1777950633000,-432.0,0.00030584,30]
[421608121,1777950633000,-200.0,0.00030543,2]
[421608123,1777950633000,-150.0,0.00031011,2]
[421608124,1777950633000,-157.79850598,0.00031225,30]
[421608126,1777950633000,-500.0,0.0003134,2]
[421608125,1777950633000,-291.0,0.00031244,30]
[421608127,1777950633000,-539.0,0.00031576,5]
[421608130,1777950633000,-168.6,0.00032983,2]
[421608156,1777950633000,-150.82083343,0.00038195,7]
[421608113,1777950633000,-283.73,0.00028988,2]
[421608160,1777950633000,-150.0,0.00038195,7]
[421608187,1777950633000,-150.0,0.00039255,7]
[421608189,1777950633000,-150.0,0.00039255,30]
[421608188,1777950633000,-150.0,0.00039255,7]
[421608195,1777950633000,-150.0,0.00039609,7]
[421608192,1777950633000,-810.0,0.00039474,5]
[421608194,1777950633000,-150.0,0.00039556,7]
[421608191,1777950633000,-150.0,0.00039396,7]
[421608193,1777950633000,-150.0,0.00039476,7]
[421608196,1777950633000,-150.0,0.00039609,7]
[421608190,1777950633000,-150.0,0.00039316,7]
[421608197,1777950633000,-150.0,0.00039609,7]
[421608185,1777950633000,-150.0,0.00039155,7]
[421608199,1777950633000,-150.0,0.00039636,7]
[421608201,1777950633000,-150.0,0.00039786,30]
[421608200,1777950633000,-150.0,0.00039716,7]
[421608202,1777950633000,-1507.1601807,0.00039792,2]
[421608204,1777950633000,-500.0,0.00039873,5]
[421608206,1777950633000,-2914.05451966,0.0003988,120]
[421608203,1777950633000,-150.0,0.00039796,7]
[421608209,1777950633000,-764.99473768,0.0003988,2]
[421608208,1777950633000,-578.8092487,0.0003988,2]
[421608205,1777950633000,-150.0,0.00039876,7]
[421608207,1777950633000,-3497.31476371,0.0003988,2]
[421608157,1777950633000,-150.0,0.00038195,7]
[421608210,1777950633000,-561.36,0.0003988,2]
[421608184,1777950633000,-150.0,0.00039138,7]
[421608198,1777950633000,-4056.88229464,0.00039632,2]
[421608186,1777950633000,-150.0,0.00039235,7]
[421608161,1777950633000,-150.0,0.00038195,7]
[421608159,1777950633000,-150.0,0.00038195,7]
[421608183,1777950633000,-816.0,0.00039137,5]
[421608163,1777950633000,-150.0,0.00038195,7]
[421608162,1777950633000,-150.41189386,0.00038195,7]
[421608164,1777950633000,-209.616465,0.0003821,21]
[421608166,1777950633000,-150.0,0.00038355,7]
[421608165,1777950633000,-150.0,0.00038275,7]
[421608167,1777950633000,-150.0,0.00038435,7]
[421608169,1777950633000,-150.0,0.00038548,7]
[421608172,1777950633000,-150.0,0.00038675,7]
[421608170,1777950633000,-150.0,0.00038595,7]
[421608158,1777950633000,-151.41707653,0.00038195,7]
[421608173,1777950633000,-150.0,0.00038725,30]
[421608168,1777950633000,-150.0,0.00038515,7]
[421608180,1777950633000,-150.0,0.00039043,7]
[421608179,1777950633000,-150.0,0.00038995,7]
[421608178,1777950633000,-150.0,0.00038915,7]
[421608176,1777950633000,-1689.86785286,0.0003888,60]
[421608182,1777950633000,-152.0,0.00039078,3]
[421608175,1777950633000,-150.0,0.00038835,7]
[421608181,1777950633000,-150.0,0.00039075,7]
[421608174,1777950633000,-150.0,0.00038755,7]
[421608171,1777950633000,-150.0,0.00038666,7]
[421608177,1777950633000,-150.0,0.00038902,7]
[421608221,1777950638000,-244.02,0.00021075,2]
[421608218,1777950638000,-244.02,0.00019068,2]
[421608219,1777950638000,-214.19523207,0.00020072,2]
[421608220,1777950638000,-29.82476793,0.00020072,2]
[421608222,1777950638000,-244.02,0.00022079,2]
[421608223,1777950638000,-160.66102251,0.00023083,2]
[421608224,1777950638000,-83.35897749,0.00023083,2]
[421608227,1777950638000,-244.02,0.00026093,2]
[421608228,1777950638000,-141.37174139,0.00027097,2]
[421608226,1777950638000,-244.02,0.0002509,2]
[421608229,1777950638000,-102.64825861,0.00027097,2]
[421608230,1777950638000,-244.02,0.00028101,2]
[421608232,1777950638000,-21.16304804,0.00030108,2]
[421608231,1777950638000,-244.02,0.00029104,2]
[421608225,1777950638000,-244.02,0.00024086,2]
[421608235,1777950639000,-1618.02325916,0.0003988,2]
[421608233,1777950639000,-222.85695196,0.00030108,2]
[421608234,1777950639000,-244.02,0.00031111,2]
[421608238,1777950640000,-244.02,0.00032115,2]
[421608239,1777950640000,-158.51,0.00033119,2]
[421608240,1777950641000,-85.51,0.00033119,2]
[421608245,1777950641000,-244.02,0.00038137,2]
[421608241,1777950641000,-244.02,0.00034122,2]
[421608246,1777950641000,-102544.99474922,0.0003988,2]
[421608243,1777950641000,-244.02,0.00036129,2]
[421608244,1777950641000,-244.02,0.00037133,2]
[421608242,1777950641000,-244.02,0.00035126,2]
[421608256,1777950643000,-16481.19501628,0.0003988,2]
[421608254,1777950643000,-504.0,0.00027137,2]
[421608255,1777950643000,-504.0,0.00033745,9]
[421608252,1777950643000,-142.24711105,0.00020951,2]
[421608253,1777950643000,-372.9,0.00022562,2]
[421608251,1777950643000,-289.48288895,0.00020951,2]
[421608287,1777950644000,-18.01578907,0.00038034,30]
[421608257,1777950644000,-1054.0,0.0003988,2]
[421608317,1777950646000,-1753.54559781,0.0003988,2]
[421608319,1777950646000,-1595.25,0.0003988,2]
[421608320,1777950646000,-565.35158157,0.0003988,2]
[421608318,1777950646000,-64812.99454648,0.0003988,2]
[421608316,1777950646000,-205.72421093,0.00038034,30]
[421608340,1777951282000,6329.65699729,0.00030137,120]
[421608354,1777951768000,-500.0,0.00014999,2]
[421608351,1777951768000,-561.36,0.00014923,2]
[421608353,1777951768000,-407.51393314,0.00014999,2]
[421608356,1777951768000,-340.009804,0.00014999,2]
[421608355,1777951768000,-500.68086582,0.00014999,2]
[421608357,1777951768000,-500.0,0.00014999,2]
[421608359,1777951768000,-500.0,0.00014999,2]
[421608366,1777951768000,-500.0,0.00014999,2]
[421608361,1777951768000,-322.45444926,0.00014999,2]
[421608360,1777951768000,-500.0,0.00014999,2]
[421608362,1777951768000,-500.0,0.00014999,2]
[421608363,1777951768000,-500.0,0.00014999,2]
[421608365,1777951768000,-500.0,0.00014999,2]
[421608352,1777951768000,-300.0,0.00014998,2]
[421608364,1777951768000,-500.0,0.00014999,2]
[421608358,1777951768000,-500.0,0.00014999,2]
[421608368,1777951768000,-500.0,0.00014999,2]
[421608367,1777951768000,-500.0,0.00014999,2]
[421608380,1777951768000,-500.0,0.00014999,2]
[421608381,1777951768000,-500.0,0.00014999,2]
[421608378,1777951768000,-500.0,0.00014999,2]
[421608379,1777951768000,-500.0,0.00014999,2]
[421608376,1777951768000,-500.0,0.00014999,2]
[421608377,1777951768000,-500.0,0.00014999,2]
[421608382,1777951768000,-179.07801741,0.00014999,2]
[421608374,1777951768000,-535.71799241,0.00014999,2]
[421608373,1777951768000,-500.0,0.00014999,2]
[421608372,1777951768000,-500.0,0.00014999,2]
[421608371,1777951768000,-500.0,0.00014999,2]
[421608369,1777951768000,-500.0,0.00014999,2]
[421608370,1777951768000,-500.0,0.00014999,2]
[421608375,1777951768000,-500.0,0.00014999,2]
[421608394,1777951831000,-324.33,0.000166,2]
[421608402,1777951831000,-222.22445993,0.00022407,2]
[421608399,1777951831000,-1092.01,0.00020951,2]
[421608401,1777951831000,-222.22445994,0.00022407,2]
[421608418,1777951831000,-155.0,0.00031225,30]
[421608406,1777951831000,-171.99,0.00024658,2]
[421608417,1777951831000,-150.0,0.00031011,2]
[421608408,1777951831000,-162.51838138,0.00026664,2]
[421608409,1777951831000,-301.9417159,0.00027,2]
[421608411,1777951831000,-171.99,0.00027292,7]
[421608410,1777951831000,-520.0,0.00027137,2]
[421608403,1777951831000,-941.39,0.00022562,2]
[421608407,1777951831000,-3017.76342909,0.00025117,2]
[421608397,1777951831000,-250.82058975,0.00020049,2]
[421608387,1777951831000,-300.0,0.00014998,2]
[421608398,1777951831000,-962.42638731,0.00020105,2]
[421608404,1777951831000,-3063.8,0.00022562,5]
[421608396,1777951831000,-3017.76342909,0.00019372,2]
[421608405,1777951831000,-962.42638731,0.00023813,2]
[421608395,1777951831000,-3950.7668,0.000169,2]
[421608391,1777951831000,-962.42638738,0.00016398,2]
[421608393,1777951831000,-3017.76342913,0.000165,2]
[421608392,1777951831000,-1499.0,0.00016498,2]
[421608388,1777951831000,-150.0,0.00014999,2]
[421608389,1777951831000,-208537.88233237,0.00015,2]
[421608390,1777951831000,-47758.76534657,0.00015,2]
[421608386,1777951831000,-1200.0,0.00014998,2]
[421608385,1777951831000,-184256.26129502,0.00012,2]
[421608415,1777951831000,-171.99,0.00029927,30]
[421608400,1777951831000,-3017.76342909,0.00022244,2]
[421608413,1777951831000,-3017.76342909,0.00027989,2]
[421608416,1777951831000,-3017.76342909,0.00030861,2]
[421608437,1777951831000,-240.78,0.00035886,2]
[421608462,1777951831000,-800.0,0.00037781,13]
[421608466,1777951831000,-800.0,0.00037781,13]
[421608464,1777951831000,-800.0,0.00037781,13]
[421608460,1777951831000,-150.0,0.00037694,2]
[421608458,1777951831000,-240.78,0.00037637,2]
[421608456,1777951831000,-190.53878735,0.000372,120]
[421608454,1777951831000,-440.0,0.00036773,30]
[421608441,1777951831000,-520.0,0.00035947,11]
[421608443,1777951831000,-509.0,0.00036164,2]
[421608452,1777951831000,-626.0,0.00036773,30]
[421608451,1777951831000,-682.0,0.00036773,30]
[421608439,1777951831000,-150.0,0.00035899,2]
[421608412,1777951831000,-16641.94686462,0.00027988,4]
[421608434,1777951831000,-167.95,0.00035532,2]
[421608447,1777951831000,-3017.76342909,0.00036606,2]
[421608449,1777951831000,-240.78,0.00036762,2]
[421608435,1777951831000,-839.66,0.00035605,2]
[421608414,1777951831000,-150.0,0.00029534,2]
[421608419,1777951831000,-520.0,0.00031542,6]
[421608421,1777951831000,-1037.04747968,0.000318,2]
[421608422,1777951831000,-1037.04747968,0.000318,2]
[421608445,1777951831000,-339.95478502,0.00036164,2]
[421608423,1777951831000,-172.01,0.00032561,2]
[421608428,1777951831000,-152.89,0.00033305,30]
[421608424,1777951831000,-150.0,0.00032562,2]
[421608425,1777951831000,-152.88,0.00033305,2]
[421608430,1777951831000,-3017.76342909,0.00033733,2]
[421608432,1777951831000,-219.8,0.000345,6]
[421608431,1777951831000,-150.0,0.0003419,2]
[421608420,1777951831000,-1037.04747971,0.000318,2]
[421608433,1777951831000,-240.78,0.00035011,2]
[421608426,1777951831000,-152.88,0.00033305,7]
[421608488,1777951832000,-576.22,0.000388,90]
[421608489,1777951832000,-879.25,0.000388,90]
[421608487,1777951832000,-150.0,0.00038742,7]
[421608498,1777951832000,-185.19109655,0.00039253,54]
[421608499,1777951832000,-1386.78395259,0.00039254,7]
[421608490,1777951832000,-150.0,0.00038801,7]
[421608491,1777951832000,-150.0,0.00038879,7]
[421608493,1777951832000,-150.0,0.00039016,7]
[421608492,1777951832000,-199.7613,0.0003889,30]
[421608494,1777951832000,-150.0,0.00039043,7]
[421608497,1777951832000,-988.397,0.00039253,54]
[421608495,1777951832000,-150.0,0.00039153,7]
[421608501,1777951832000,-1491.30447232,0.00039254,7]
[421608500,1777951832000,-1438.09495884,0.00039254,7]
[421608484,1777951832000,-150.0,0.00038468,7]
[421608496,1777951832000,-171.647669,0.000392,21]
[421608478,1777951832000,-150.0,0.00038195,7]
[421608468,1777951832000,-800.0,0.00037781,13]
[421608483,1777951832000,-9699.5396112,0.00038381,2]
[421608471,1777951832000,-150.0,0.00038195,30]
[421608504,1777951832000,-1524.77167068,0.00039254,7]
[421608467,1777951832000,-810.0,0.00037781,13]
[421608472,1777951832000,-150.20530018,0.00038195,7]
[421608470,1777951832000,-564.83,0.00038034,30]
[421608469,1777951832000,-800.0,0.00037781,13]
[421608473,1777951832000,-150.0,0.00038195,7]
[421608477,1777951832000,-150.0,0.00038195,7]
[421608474,1777951832000,-150.0,0.00038195,7]
[421608479,1777951832000,-150.0,0.00038195,7]
[421608480,1777951832000,-219.8,0.000383,10]
[421608482,1777951832000,-2045.1483531,0.00038381,2]
[421608485,1777951832000,-240.78,0.00038512,2]
[421608486,1777951832000,-150.0,0.00038605,7]
[421608481,1777951832000,-150.0,0.00038331,7]
[421608476,1777951832000,-150.0,0.00038195,7]
[421608475,1777951832000,-150.0,0.00038195,7]
[421608503,1777951832000,-1603.70259909,0.00039254,7]
[421608502,1777951832000,-1546.48273779,0.00039254,7]
[421608506,1777951832000,-1724.57206028,0.00039254,7]
[421608529,1777951832000,-187.24529006,0.0003977,2]
[421608525,1777951832000,-1356.44416263,0.0003968,2]
[421608527,1777951832000,-150.0,0.000397,7]
[421608526,1777951832000,-2500.0,0.0003968,2]
[421608528,1777951832000,-236.427531,0.00039759,21]
[421608533,1777951832000,-500.0,0.00039779,7]
[421608532,1777951832000,-184.07055468,0.00039779,7]
[421608535,1777951832000,-102030.28351204,0.0003978,2]
[421608534,1777951832000,-200.0,0.0003978,30]
[421608537,1777951832000,-1254.41808677,0.0003978,2]
[421608536,1777951832000,-25963.71421609,0.0003978,2]
[421608538,1777951832000,-728.743811,0.0003978,2]
[421608541,1777951832000,-498.60816711,0.0003978,2]
[421608540,1777951832000,-491.75,0.0003978,2]
[421608539,1777951832000,-1700.23783598,0.0003978,2]
[421608516,1777951832000,-3017.76342909,0.00039478,2]
[421608542,1777951832000,-362.36399931,0.0003978,2]
[421608524,1777951832000,-25060.5504,0.0003968,2]
[421608522,1777951832000,-150.0,0.00039579,2]
[421608543,1777951832000,-4474.17622993,0.0003978,2]
[421608531,1777951832000,-500.394342,0.00039773,5]
[421608530,1777951832000,-266.14613373,0.00039773,5]
[421608517,1777951832000,-183.3225,0.0003948,114]
[421608505,1777951832000,-138.26792458,0.00039254,7]
[421608518,1777951832000,-183.3225,0.0003948,114]
[421608508,1777951832000,-1854.55133189,0.00039254,7]
[421608509,1777951832000,-1923.16973117,0.00039254,7]
[421608511,1777951832000,-150.0,0.00039255,30]
[421608515,1777951832000,-190.394706,0.00039471,33]
[421608507,1777951832000,-1788.38122651,0.00039254,7]
[421608510,1777951832000,-1994.32701123,0.00039254,7]
[421608512,1777951832000,-150.0,0.0003929,7]
[421608514,1777951832000,-150.0,0.00039427,7]
[421608519,1777951832000,-183.32251,0.0003948,114]
[421608523,1777951832000,-150.0,0.00039609,7]
[421608520,1777951832000,-183.3225,0.0003948,114]
[421608521,1777951832000,-150.0,0.00039563,7]
[421608513,1777951832000,-150.0,0.00039407,7]
[421608552,1777951837000,-774.77005426,0.0003978,2]
[421608551,1777951837000,-152.86,0.00032784,2]
[421608549,1777951837000,-229.29,0.00024658,2]
[421608550,1777951837000,-962.42638731,0.0002752,2]
[421608555,1777951837000,-30457.55529068,0.0003978,2]
[421608553,1777951837000,-7295.89671165,0.0003978,2]
[421608557,1777951837000,-7628.76673679,0.0003978,2]
[421608556,1777951837000,-693.42697033,0.0003978,2]
[421608554,1777951837000,-185018.88907586,0.0003978,2]
[421608567,1777951839000,-1136.0,0.0003978,2]
[421608568,1777951840000,-20232.96582522,0.0003978,2]
[421608569,1777951840000,-1633.54744818,0.0003978,2]
[421608573,1777951840000,-282.73674171,0.0003978,2]
[421608572,1777951840000,-2027.67609915,0.0003978,2]
[421608570,1777951840000,-1596.28143934,0.0003978,2]
[421608571,1777951840000,-36422.65079707,0.0003978,2]
[421608610,1777951843000,-1074.1978759,0.000394,114]
[421608611,1777951843000,-23634.18451746,0.0003978,2]
[421608609,1777951843000,-157.48838278,0.000394,114]
[421608608,1777951843000,-962.42638731,0.00031228,2]
[421608613,1777951845000,-2548.66446415,0.0003978,2]
[421608612,1777951845000,-466.96824916,0.0002,2]
[421608615,1777951846000,-7025.99147052,0.0003978,2]
[421608616,1777951846000,-509.0,0.0003978,2]
[421608614,1777951846000,-962.42638731,0.00034935,2]
[421608618,1777952009000,9050.79377465,0.0003013,120]
[421608619,1777952794000,-184.01511445,0.00014999,2]
[421608632,1777952830000,-156.99,0.00025345,7]
[421608639,1777952830000,-518.0,0.00027137,2]
[421608640,1777952830000,-1680.0,0.00028711,2]
[421608637,1777952830000,-162.51838138,0.00026794,2]
[421608634,1777952830000,-1200.0,0.00026424,2]
[421608638,1777952830000,-162.51838138,0.00027,3]
[421608636,1777952830000,-9999.99,0.00026426,2]
[421608635,1777952830000,-7195.89,0.00026425,2]
[421608633,1777952830000,-157.91,0.00025416,7]
[421608631,1777952830000,-156.99,0.00024658,2]
[421608641,1777952830000,-150.0,0.00029534,2]
[421608628,1777952830000,-752.83,0.00020548,2]
[421608629,1777952830000,-266.66935192,0.00022407,2]
[421608625,1777952830000,-156.83,0.00016553,2]
[421608624,1777952830000,-250.0,0.00016499,2]
[421608627,1777952830000,-203.3153538,0.0002,10]
[421608626,1777952830000,-694.4,0.000166,2]
[421608623,1777952830000,-300.0,0.00016499,2]
[421608622,1777952830000,-300.0,0.00015776,2]
[421608621,1777952830000,-253.80736015,0.00015388,2]
[421608620,1777952830000,-206.01417339,0.00014999,2]
[421608630,1777952830000,-157.91,0.00024658,2]
[421608642,1777952830000,-372.0,0.00031197,3]
[421608646,1777952830000,-622.22848781,0.000318,2]
[421608643,1777952830000,-160.0,0.00031225,30]
[421608644,1777952830000,-622.22848782,0.000318,2]
[421608665,1777952830000,-157.91,0.00033288,2]
[421608664,1777952830000,-157.91,0.00033288,30]
[421608663,1777952830000,-157.91,0.00033288,7]
[421608660,1777952830000,-157.91,0.00033288,7]
[421608662,1777952830000,-157.91,0.00033288,2]
[421608656,1777952830000,-156.99,0.00033075,2]
[421608657,1777952830000,-157.0,0.00033075,7]
[421608658,1777952830000,-1071.73,0.00033257,2]
[421608659,1777952830000,-157.91,0.00033288,2]
[421608661,1777952830000,-157.91,0.00033288,30]
[421608654,1777952830000,-156.99,0.00033075,7]
[421608655,1777952830000,-156.99,0.00033075,30]
[421608649,1777952830000,-247.0,0.00032997,2]
[421608647,1777952830000,-518.0,0.00031943,7]
[421608666,1777952830000,-157.98,0.00033288,7]
[421608648,1777952830000,-167.0,0.00032225,30]
[421608650,1777952830000,-156.99,0.00033075,2]
[421608653,1777952830000,-156.99,0.00033075,2]
[421608651,1777952830000,-156.99,0.00033075,7]
[421608652,1777952830000,-156.99,0.00033075,30]
[421608645,1777952830000,-622.22848781,0.000318,2]
[421608678,1777952831000,-150.0,0.00038195,7]
[421608674,1777952831000,-150.0,0.00038195,7]
[421608679,1777952831000,-150.0,0.00038195,7]
[421608677,1777952831000,-164.96627634,0.00038195,7]
[421608675,1777952831000,-151.63790821,0.00038195,7]
[421608672,1777952831000,-150.0,0.00038195,30]
[421608667,1777952831000,-824.509,0.0003481,40]
[421608673,1777952831000,-150.0,0.00038195,7]
[421608671,1777952831000,-1071.73,0.00037414,2]
[421608669,1777952831000,-518.0,0.00036748,12]
[421608668,1777952831000,-152.0,0.0003573,3]
[421608680,1777952831000,-150.0,0.00038418,7]
[421608670,1777952831000,-422.0,0.00036773,30]
[421608676,1777952831000,-150.0,0.00038195,7]
[421608689,1777952831000,-189.9926087,0.00039382,2]
[421608682,1777952831000,-150.0,0.00038865,7]
[421608694,1777952831000,-153.71,0.00039581,10]
[421608695,1777952831000,-1822.0851567,0.00039591,2]
[421608693,1777952831000,-1220.79974634,0.0003958,2]
[421608692,1777952831000,-914.950177,0.0003958,2]
[421608681,1777952831000,-150.0,0.00038641,7]
[421608686,1777952831000,-150.0,0.00039311,7]
[421608691,1777952831000,-150.0,0.00039535,7]
[421608687,1777952831000,-500.0,0.00039382,2]